{"text_format":"1","workbook":"xlsx","n_sheets":2,"sheets":["Sheet1","Sheet2"],"not_rendered":{"charts":0,"images":0,"macros":1,"external_links":0,"defined_names":0,"comments":0,"pivot_tables":0},"unopened":[],"bounds":{"document_bytes":16777216,"sheet_cells":100000,"rows_first":2000,"rows_last":500,"rows_between":2000,"halvings":0,"cell_chars":16384,"cell_head_chars":4096},"cells_cut":0,"cells_raw":0,"read":"whole","date_system":"1900"}

{"sheet":"Sheet1","index":0,"n_rows":13,"n_cols":4,"rows_kept":13,"cut":false,"hidden":false,"merged":[[0,0,0,3]]}
["Employee Record of Saturn Group"]
[]
[null,"Employee ID","Employee Name","First Name"]
[null,165,"Mark Orwell",{"$f":"First_Name(C4)","v":"Mark"}]
[null,149,"Craig Arvin",{"$f":"First_Name(C5)","v":"Craig"}]
[null,129,"Shaun Mcvoy",{"$f":"First_Name(C6)","v":"Shaun"}]
[null,163,"Steve Jones",{"$f":"First_Name(C7)","v":"Steve"}]
[null,110,"Natalia Austin",{"$f":"First_Name(C8)","v":"Natalia"}]
[null,113,"Richard Hopkins",{"$f":"First_Name(C9)","v":"Richard"}]
[null,178,"Jennifer Marlo",{"$f":"First_Name(C10)","v":"Jennifer"}]
[null,195,"Angela Moor",{"$f":"First_Name(C11)","v":"Angela"}]
[null,113,"Desmond Hayes",{"$f":"First_Name(C12)","v":"Desmond"}]
[null,160,"Benjamin Hick",{"$f":"First_Name(C13)","v":"Benjamin"}]

{"sheet":"Sheet2","index":1,"n_rows":13,"n_cols":5,"rows_kept":13,"cut":false,"hidden":false,"merged":[[0,0,0,3]]}
["Employee Record of Saturn Group"]
[]
[null,"Employee ID","Employee Name","Email IDs","User Name"]
[null,165,"Mark Orwell","M.Orwell@gmail.com",{"$f":"User_Name(D4)","v":"M.Orwell"}]
[null,149,"Craig Arvin","Craig177@gmail.com",{"$f":"User_Name(D5)","v":"Craig177"}]
[null,129,"Shaun Mcvoy","ShaunMcvoy@outlook.com",{"$f":"User_Name(D6)","v":"ShaunMcvoy"}]
[null,163,"Steve Jones","Steve.Jones@gmail.com",{"$f":"User_Name(D7)","v":"Steve.Jones"}]
[null,110,"Natalia Austin","N.Austin@gmail.com",{"$f":"User_Name(D8)","v":"N.Austin"}]
[null,113,"Richard Hopkins","RichardHopkins123@outlook.com",{"$f":"User_Name(D9)","v":"RichardHopkins123"}]
[null,178,"Jennifer Marlo","Jennifer.Marlo@outlook.com",{"$f":"User_Name(D10)","v":"Jennifer.Marlo"}]
[null,195,"Angela Moor","Angela@yahoo.com",{"$f":"User_Name(D11)","v":"Angela"}]
[null,113,"Desmond Hayes","Desmond599@yahoo.com",{"$f":"User_Name(D12)","v":"Desmond599"}]
[null,160,"Benjamin Hick","Benjamin.Hick@outlook.com",{"$f":"User_Name(D13)","v":"Benjamin.Hick"}]